[Event "2nd FIDE WCC Rapid G10"]
[Site "Minsk"]
[Date "2018.06.23"]
[Round "5"]
[White "Szczotka, Klara"]
[Black "Shukhman, Anna"]
[Result "0-1"]
[ECO "B34"]
[WhiteElo "1465"]
[BlackElo "1577"]
[Annotator "NA"]
[PlyCount "152"]
[EventDate "2018.06.22"]
[EventType "rapid"]
[EventCountry "BLR"]
[SourceTitle "playchess.com"]
[Source "ChessBase"]
[SourceQuality "1"]
[TimeControl "600+5"]

1. e4 {[%emt 0:00:00]} c5 {[%emt 0:00:03]} 2. Nf3 {[%emt 0:00:00]} Nc6 {[%emt 0:00:01]} 3. d4 {[%emt 0:00:00]} cxd4 {[%emt 0:00:01]} 4. Nxd4 {[%emt 0:00:02]} g6 {[%emt 0:00:01]} 5. Nc3 {[%emt 0:00:02]} Bg7 {[%emt 0:00:02]} 6. Nde2 {[%emt 0:00:02]} Nf6 {[%emt 0:00:05]} 7. g3 {[%emt 0:00:02]} d6 {[%emt 0:00:03]} 8. Bg2 {[%emt 0:00:03]} O-O {[%emt 0:00:10]} 9. O-O {[%emt 0:00:02]} Nd7 {[%emt 0:02:21]} 10. a4 {[%emt 0:02:09]} Qa5 {[%emt 0:02:02]} 11. Nd5 {[%emt 0:03:08]} Nde5 {[%emt 0:01:15]} 12. Ra2 {[%emt 0:01:27]} Bg4 {[%emt 0:00:47]} 13. f3 {[%emt 0:00:45]} Be6 {[%emt 0:00:20]} 14. c3 {[%emt 0:00:23]} Bxd5 {[%emt 0:00:53]} 15. exd5 {[%emt 0:00:02]} Qb6+ {[%emt 0:00:07]} 16. Kh1 {[%emt 0:00:07]} Na5 {[%emt 0:00:15]} 17. Nd4 {[%emt 0:00:27]} Nd7 {[%emt 0:00:29]} 18. Be3 {[%emt 0:00:29]} Nc4 {[%emt 0:00:06]} 19. Bg1 {[%emt 0:00:15]} Qd8 {[%emt 0:00:23]} 20. b3 {[%emt 0:00:14]} Ncb6 {[%emt 0:00:05]} 21. f4 {[%emt 0:00:07]} Rc8 {[%emt 0:00:28]} 22. Qd2 {[%emt 0:00:12]} Nf6 {[%emt 0:00:17]} 23. Ne2 {[%emt 0:00:20]} a6 {[%emt 0:00:17]} 24. a5 {[%emt 0:00:08]} Nbd7 {[%emt 0:00:02]} 25. Rc1 {[%emt 0:00:17]} Nc5 {[%emt 0:00:08]} 26. b4 {[%emt 0:00:10]} Ncd7 {[%emt 0:00:36]} 27. Rac2 {[%emt 0:00:15]} b6 {[%emt 0:00:05]} 28. Ra1 {[%emt 0:00:28]} b5 {[%emt 0:00:13]} 29. Nd4 {[%emt 0:00:13]} Nb8 {[%emt 0:00:08]} 30. Re1 {[%emt 0:00:05]} Qd7 {[%emt 0:00:17]} 31. Qe2 {[%emt 0:00:15]} Rfe8 {[%emt 0:00:02]} 32. Nc6 {[%emt 0:00:13]} Nxc6 {[%emt 0:00:04]} 33. dxc6 {[%emt 0:00:01]} Qf5 {[%emt 0:00:05]} 34. Rcc1 {[%emt 0:00:06]} e5 {[%emt 0:00:22]} 35. fxe5 {[%emt 0:00:06]} Rxe5 {[%emt 0:00:02]} 36. Qd2 {[%emt 0:00:05]} Ne4 {[%emt 0:00:04]} 37. Qc2 {[%emt 0:00:12]} Nxg3+ {[%emt 0:00:13]} 38. hxg3 {[%emt 0:00:04]} Qxc2 {[%emt 0:00:02]} 39. Rxc2 {[%emt 0:00:03]} Rxe1 {[%emt 0:00:01]} 40. Kh2 {[%emt 0:00:08]} Re5 {[%emt 0:00:04]} 41. Bd4 {[%emt 0:00:06]} Rh5+ {[%emt 0:00:01]} 42. Kg1 {[%emt 0:00:01]} Bxd4+ {[%emt 0:00:03]} 43. cxd4 {[%emt 0:00:01]} Rg5 {[%emt 0:00:03]} 44. Kf2 {[%emt 0:00:03]} Rf5+ {[%emt 0:00:02]} 45. Ke3 {[%emt 0:00:03]} Rc7 {[%emt 0:00:01]} 46. Bh3 {[%emt 0:00:22]} Rh5 {[%emt 0:00:10]} 47. Bg4 {[%emt 0:00:03]} Rg5 {[%emt 0:00:02]} 48. Kf4 {[%emt 0:00:02]} h6 {[%emt 0:00:03]} 49. Re2 {[%emt 0:00:02]} Kg7 {[%emt 0:00:03]} 50. Bh3 {[%emt 0:00:04]} Rd5 {[%emt 0:00:03]} 51. Re4 {[%emt 0:00:03]} f5 {[%emt 0:00:02]} 52. Re6 {[%emt 0:00:07]} Rxd4+ {[%emt 0:00:02]} 53. Ke3 {[%emt 0:00:02]} Re4+ {[%emt 0:00:05]} 54. Rxe4 {[%emt 0:00:03]} fxe4 {[%emt 0:00:01]} 55. Kxe4 {[%emt 0:00:02]} Rxc6 {[%emt 0:00:02]} 56. Kd5 {[%emt 0:00:01]} Rc4 {[%emt 0:00:02]} 57. Kxd6 {[%emt 0:00:02]} Rxb4 {[%emt 0:00:01]} 58. Kc5 {[%emt 0:00:01]} Rb3 {[%emt 0:00:03]} 59. Bc8 {[%emt 0:00:05]} Rxg3 {[%emt 0:00:02]} 60. Bxa6 {[%emt 0:00:01]} h5 {[%emt 0:00:01]} 61. Bxb5 {[%emt 0:00:01]} Ra3 {[%emt 0:00:02]} 62. a6 {[%emt 0:00:02]} h4 {[%emt 0:00:01]} 63. Kd4 {[%emt 0:00:02]} Ra5 {[%emt 0:00:03]} 64. Be2 {[%emt 0:00:04]} Kf6 {[%emt 0:00:02]} 65. Ke4 {[%emt 0:00:04]} Ra4+ {[%emt 0:00:03]} 66. Kf3 {[%emt 0:00:03]} Kf5 {[%emt 0:00:03]} 67. Bd3+ {[%emt 0:00:04]} Kf6 {[%emt 0:00:02]} 68. Be2 {[%emt 0:00:05]} g5 {[%emt 0:00:02]} 69. Kg2 {[%emt 0:00:09]} Ra2 {[%emt 0:00:02]} 70. Kf1 {[%emt 0:00:10]} Ke5 {[%emt 0:00:02]} 71. Bd3 {[%emt 0:00:08]} Kf4 {[%emt 0:00:02]} 72. Kg1 {[%emt 0:00:08]} Kg3 {[%emt 0:00:04]} 73. Bf1 {[%emt 0:00:09]} Ra1 {[%emt 0:00:07]} 74. a7 {[%emt 0:00:02]} Rxa7 {[%emt 0:00:02]} 75. Kh1 {[%emt 0:00:03]} Ra1 {[%emt 0:00:02]} 76. Kg1 {[%emt 0:00:02]} h3 {[%emt 0:00:01]} 0-1

[Event "2nd FIDE WCC Rapid G10"]
[Site "Minsk"]
[Date "2018.06.23"]
[Round "5"]
[White "Kirdyashkina, Ekaterina"]
[Black "Khamdamova, Afruza"]
[Result "0-1"]
[ECO "C42"]
[WhiteElo "1463"]
[BlackElo "1383"]
[Annotator "NA"]
[PlyCount "112"]
[EventDate "2018.06.22"]
[EventType "rapid"]
[EventCountry "BLR"]
[SourceTitle "playchess.com"]
[Source "ChessBase"]
[SourceQuality "1"]
[TimeControl "600+5"]

1. e4 {[%emt 0:00:00]} e5 {[%emt 0:00:01]} 2. Nf3 {[%emt 0:00:04]} Nf6 {[%emt 0:00:01]} 3. Nxe5 {[%emt 0:00:15]} d6 {[%emt 0:00:01]} 4. Nf3 {[%emt 0:00:01]} Nxe4 {[%emt 0:00:02]} 5. Be2 {[%emt 0:00:08]} d5 {[%emt 0:00:09]} 6. O-O {[%emt 0:00:03]} Bd6 {[%emt 0:00:06]} 7. d3 {[%emt 0:00:27]} Nf6 {[%emt 0:00:03]} 8. Nc3 {[%emt 0:00:18]} O-O {[%emt 0:00:13]} 9. Bg5 {[%emt 0:00:08]} c6 {[%emt 0:00:11]} 10. h3 {[%emt 0:00:32]} Bf5 {[%emt 0:00:04]} 11. a3 {[%emt 0:00:53]} Nbd7 {[%emt 0:00:02]} 12. Re1 {[%emt 0:00:28]} Qb6 {[%emt 0:00:38]} 13. Rb1 {[%emt 0:00:09]} d4 {[%emt 0:00:31]} 14. Ne4 {[%emt 0:03:52]} Nxe4 {[%emt 0:00:21]} 15. dxe4 {[%emt 0:00:01]} Bxe4 {[%emt 0:00:01]} 16. Nxd4 {[%emt 0:00:07]} Bc5 {[%emt 0:00:17]} 17. Be3 {[%emt 0:00:03]} Rad8 {[%emt 0:00:28]} 18. b4 {[%emt 0:00:47]} Bxd4 {[%emt 0:00:25]} 19. Bxd4 {[%emt 0:00:03]} Qc7 {[%emt 0:00:03]} 20. Qc1 {[%emt 0:00:30]} Ne5 {[%emt 0:00:58]} 21. Bxe5 {[%emt 0:00:16]} Qxe5 {[%emt 0:00:02]} 22. Bd3 {[%emt 0:00:02]} f5 {[%emt 0:00:06]} 23. Qe3 {[%emt 0:00:37]} Qf6 {[%emt 0:00:13]} 24. Bxe4 {[%emt 0:00:32]} fxe4 {[%emt 0:00:02]} 25. Re2 {[%emt 0:00:06]} Rde8 {[%emt 0:01:01]} 26. Qxa7 {[%emt 0:00:33]} b5 {[%emt 0:00:14]} 27. Qe3 {[%emt 0:00:12]} Qg6 {[%emt 0:00:58]} 28. Kh1 {[%emt 0:00:24]} Rf5 {[%emt 0:01:56]} 29. Rg1 {[%emt 0:00:32]} Rh5 {[%emt 0:00:52]} 30. Kh2 {[%emt 0:00:07]} Qd6+ {[%emt 0:00:04]} 31. Qg3 {[%emt 0:00:07]} Qd7 {[%emt 0:00:25]} 32. Rge1 {[%emt 0:00:03]} Rhe5 {[%emt 0:00:07]} 33. f3 {[%emt 0:00:07]} e3 {[%emt 0:00:02]} 34. Qf4 {[%emt 0:00:04]} Qe7 {[%emt 0:00:11]} 35. Kg1 {[%emt 0:00:06]} Rf8 {[%emt 0:00:10]} 36. Qg3 {[%emt 0:00:04]} Re8 {[%emt 0:00:25]} 37. f4 {[%emt 0:00:03]} Re4 {[%emt 0:00:01]} 38. Qf3 {[%emt 0:00:08]} Qd6 {[%emt 0:00:26]} 39. Rxe3 {[%emt 0:00:09]} Qd4 {[%emt 0:00:01]} 40. Kf2 {[%emt 0:00:02]} Rxf4 {[%emt 0:00:02]} 41. Qxf4 {[%emt 0:00:15]} Qxf4+ {[%emt 0:00:02]} 42. Rf3 {[%emt 0:00:02]} Qd4+ {[%emt 0:00:02]} 43. Kf1 {[%emt 0:00:06]} Qc4+ {[%emt 0:00:04]} 44. Rd3 {[%emt 0:00:04]} Rxe1+ {[%emt 0:00:02]} 45. Kxe1 {[%emt 0:00:01]} Qxc2 {[%emt 0:00:01]} 46. Rd6 {[%emt 0:00:06]} Qxg2 {[%emt 0:00:04]} 47. Re6 {[%emt 0:00:04]} Kf7 {[%emt 0:00:02]} 48. Re3 {[%emt 0:00:03]} g5 {[%emt 0:00:05]} 49. Kd1 {[%emt 0:00:04]} h5 {[%emt 0:00:02]} 50. Rd3 {[%emt 0:00:02]} g4 {[%emt 0:00:02]} 51. hxg4 {[%emt 0:00:03]} hxg4 {[%emt 0:00:01]} 52. Rd7+ {[%emt 0:00:04]} Ke6 {[%emt 0:00:01]} 53. Rg7 {[%emt 0:00:04]} g3 {[%emt 0:00:01]} 54. Rg6+ {[%emt 0:00:02]} Kf7 {[%emt 0:00:01]} 55. Rg5 {[%emt 0:00:04]} Qf3+ {[%emt 0:00:02]} 56. Kc2 {[%emt 0:00:04]} g2 {[%emt 0:00:02]} 0-1

[Event "2nd FIDE WCC Rapid G10"]
[Site "Minsk"]
[Date "2018.06.23"]
[Round "5"]
[White "Borovikova, Marija"]
[Black "Zavivaeva, Evelina"]
[Result "1-0"]
[ECO "C01"]
[WhiteElo "1172"]
[BlackElo "1390"]
[Annotator "NA"]
[PlyCount "111"]
[EventDate "2018.06.22"]
[EventType "rapid"]
[EventCountry "BLR"]
[SourceTitle "playchess.com"]
[Source "ChessBase"]
[SourceQuality "1"]
[TimeControl "600+5"]

1. e4 {[%emt 0:00:00]} e6 {[%emt 0:00:10]} 2. d4 {[%emt 0:00:00]} d5 {[%emt 0:00:05]} 3. exd5 {[%emt 0:00:00]} exd5 {[%emt 0:00:03]} 4. Nf3 {[%emt 0:00:00]} Be7 {[%emt 0:00:05]} 5. Bd3 {[%emt 0:00:09]} Nf6 {[%emt 0:00:04]} 6. O-O {[%emt 0:00:04]} Nc6 {[%emt 0:00:07]} 7. c3 {[%emt 0:00:15]} Bg4 {[%emt 0:00:18]} 8. h3 {[%emt 0:00:03]} Bh5 {[%emt 0:01:01]} 9. Bf4 {[%emt 0:00:04]} Qd7 {[%emt 0:00:23]} 10. Nbd2 {[%emt 0:00:04]} O-O-O {[%emt 0:00:35]} 11. a4 {[%emt 0:00:15]} h6 {[%emt 0:00:11]} 12. a5 {[%emt 0:00:15]} g5 {[%emt 0:00:11]} 13. Bh2 {[%emt 0:00:09]} g4 {[%emt 0:00:57]} 14. hxg4 {[%emt 0:00:02]} Bxg4 {[%emt 0:00:08]} 15. a6 {[%emt 0:00:06]} b6 {[%emt 0:00:22]} 16. Bb5 {[%emt 0:00:08]} Qe8 {[%emt 0:04:45]} 17. Re1 {[%emt 0:00:32]} Bd7 {[%emt 0:01:31]} 18. Bxc6 {[%emt 0:00:32]} Bxc6 {[%emt 0:00:02]} 19. Be5 {[%emt 0:00:03]} Ne4 {[%emt 0:00:28]} 20. Bxh8 {[%emt 0:00:10]} Qxh8 {[%emt 0:00:00]} 21. Ne5 {[%emt 0:00:33]} Qf6 {[%emt 0:00:11]} 22. Nxc6 Qxc6 {[%emt 0:00:01]} 23. Qg4+ {[%emt 0:00:16]} Kb8 {[%emt 0:00:11]} 24. Nxe4 {[%emt 0:00:03]} dxe4 {[%emt 0:00:07]} 25. Qxe4 {[%emt 0:00:02]} Qxe4 26. Rxe4 {[%emt 0:00:03]} Bd6 {[%emt 0:00:10]} 27. Rae1 {[%emt 0:00:04]} c6 {[%emt 0:00:05]} 28. Re8 {[%emt 0:00:03]} Kc7 {[%emt 0:00:03]} 29. Rxd8 {[%emt 0:00:11]} Kxd8 {[%emt 0:00:02]} 30. Re4 {[%emt 0:00:11]} f5 {[%emt 0:00:06]} 31. Re6 {[%emt 0:00:03]} Kd7 {[%emt 0:00:07]} 32. Rxh6 {[%emt 0:00:02]} c5 {[%emt 0:00:04]} 33. dxc5 {[%emt 0:00:04]} bxc5 {[%emt 0:00:04]} 34. Rf6 {[%emt 0:00:07]} f4 {[%emt 0:00:02]} 35. Rf7+ {[%emt 0:00:08]} Be7 {[%emt 0:00:05]} 36. Rxf4 {[%emt 0:00:01]} Kc6 37. g4 {[%emt 0:00:13]} Bg5 {[%emt 0:00:10]} 38. Rf5 {[%emt 0:00:02]} Bc1 {[%emt 0:00:02]} 39. g5 {[%emt 0:00:05]} Kb5 {[%emt 0:00:05]} 40. g6 {[%emt 0:00:03]} Bh6 {[%emt 0:00:02]} 41. Rf7 {[%emt 0:00:05]} Kxa6 {[%emt 0:00:04]} 42. g7 {[%emt 0:00:01]} Bxg7 {[%emt 0:00:03]} 43. Rxg7 {[%emt 0:00:01]} Kb6 {[%emt 0:00:03]} 44. f4 {[%emt 0:00:03]} a5 45. f5 {[%emt 0:00:01]} Kc6 {[%emt 0:00:05]} 46. f6 {[%emt 0:00:01]} Kb5 {[%emt 0:00:02]} 47. f7 {[%emt 0:00:02]} Ka4 {[%emt 0:00:01]} 48. f8=Q {[%emt 0:00:07]} c4 {[%emt 0:00:05]} 49. Qa3+ {[%emt 0:00:11]} Kb5 {[%emt 0:00:00]} 50. Rg5+ {[%emt 0:00:02]} Kc6 {[%emt 0:00:02]} 51. Qxa5 {[%emt 0:00:05]} Kd6 {[%emt 0:00:01]} 52. Rg6+ {[%emt 0:00:03]} Ke7 {[%emt 0:00:02]} 53. Qa7+ {[%emt 0:00:13]} Kf8 {[%emt 0:00:03]} 54. Qg7+ {[%emt 0:00:07]} Ke8 {[%emt 0:00:02]} 55. Ra6 {[%emt 0:00:03]} Kd8 {[%emt 0:00:03]} 56. Ra8# {[%emt 0:00:01]} 1-0

[Event "2nd FIDE WCC Rapid G10"]
[Site "Minsk"]
[Date "2018.06.23"]
[Round "6"]
[White "Shukhman, Anna"]
[Black "Shvedova, Alexandra"]
[Result "1/2-1/2"]
[ECO "C67"]
[WhiteElo "1577"]
[BlackElo "1758"]
[Annotator "NA"]
[PlyCount "111"]
[EventDate "2018.06.22"]
[EventType "rapid"]
[EventCountry "BLR"]
[SourceTitle "playchess.com"]
[Source "ChessBase"]
[SourceQuality "1"]
[TimeControl "600+5"]

1. e4 {[%emt 0:00:00]} e5 {[%emt 0:00:01]} 2. Nf3 {[%emt 0:00:00]} Nc6 {[%emt 0:00:01]} 3. Bb5 {[%emt 0:00:00]} Nf6 {[%emt 0:00:01]} 4. O-O {[%emt 0:00:02]} Nxe4 {[%emt 0:00:01]} 5. d4 {[%emt 0:00:02]} Nd6 {[%emt 0:00:01]} 6. Bxc6 {[%emt 0:00:01]} dxc6 {[%emt 0:00:01]} 7. dxe5 {[%emt 0:00:01]} Nf5 {[%emt 0:00:01]} 8. Qxd8+ {[%emt 0:00:02]} Kxd8 {[%emt 0:00:00]} 9. Nc3 {[%emt 0:00:05]} Bb4 {[%emt 0:00:20]} 10. Ne4 {[%emt 0:00:02]} h6 {[%emt 0:00:16]} 11. a3 {[%emt 0:00:27]} Bf8 {[%emt 0:00:03]} 12. b3 {[%emt 0:00:09]} Be6 {[%emt 0:00:07]} 13. Bb2 {[%emt 0:00:08]} b6 {[%emt 0:00:07]} 14. Rad1+ {[%emt 0:00:06]} Ke8 {[%emt 0:00:02]} 15. h3 {[%emt 0:00:05]} Ne7 {[%emt 0:00:14]} 16. Rfe1 {[%emt 0:00:57]} c5 {[%emt 0:00:55]} 17. Rd2 {[%emt 0:01:05]} Bd5 {[%emt 0:00:14]} 18. Nf6+ {[%emt 0:01:23]} gxf6 {[%emt 0:01:23]} 19. exf6 {[%emt 0:00:02]} Bxf3 {[%emt 0:00:05]} 20. fxe7 {[%emt 0:00:14]} Rg8 {[%emt 0:00:13]} 21. exf8=Q+ {[%emt 0:00:13]} Kxf8 {[%emt 0:00:02]} 22. g3 {[%emt 0:00:08]} Bc6 {[%emt 0:00:45]} 23. Bf6 {[%emt 0:00:31]} Rg6 {[%emt 0:00:58]} 24. Rd8+ {[%emt 0:00:42]} Rxd8 {[%emt 0:00:01]} 25. Bxd8 {[%emt 0:00:02]} Bd7 {[%emt 0:00:17]} 26. Bxc7 {[%emt 0:00:33]} Bxh3 {[%emt 0:00:02]} 27. Rd1 {[%emt 0:00:37]} Ke7 {[%emt 0:00:56]} 28. Bd8+ {[%emt 0:00:35]} Ke8 {[%emt 0:00:12]} 29. Bc7 {[%emt 0:00:07]} Rc6 {[%emt 0:00:10]} 30. Bf4 {[%emt 0:00:07]} Bf5 {[%emt 0:00:08]} 31. c3 {[%emt 0:00:34]} Bc2 {[%emt 0:00:06]} 32. Rd6 {[%emt 0:00:02]} Rxd6 {[%emt 0:00:12]} 33. Bxd6 {[%emt 0:00:01]} Bxb3 {[%emt 0:00:02]} 34. Bb8 {[%emt 0:00:02]} Kd7 {[%emt 0:00:28]} 35. Kg2 {[%emt 0:00:21]} Kc6 {[%emt 0:00:05]} 36. Kf3 {[%emt 0:00:04]} a5 {[%emt 0:00:09]} 37. Ke3 {[%emt 0:00:09]} Kb5 {[%emt 0:00:12]} 38. Kd2 {[%emt 0:00:03]} Ka4 {[%emt 0:00:09]} 39. Ba7 {[%emt 0:00:07]} Kb5 {[%emt 0:00:05]} 40. Kc1 {[%emt 0:00:07]} Kc6 {[%emt 0:00:07]} 41. Bb8 {[%emt 0:00:02]} b5 {[%emt 0:00:03]} 42. Kb2 {[%emt 0:00:03]} a4 {[%emt 0:00:14]} 43. Be5 {[%emt 0:00:09]} Kd5 {[%emt 0:00:02]} 44. Bf4 {[%emt 0:00:03]} h5 {[%emt 0:00:01]} 45. Be3 {[%emt 0:00:16]} Kc4 {[%emt 0:00:24]} 46. Bf4 {[%emt 0:00:15]} b4 {[%emt 0:00:39]} 47. axb4 {[%emt 0:00:26]} cxb4 {[%emt 0:00:01]} 48. cxb4 {[%emt 0:00:01]} Kxb4 {[%emt 0:00:02]} 49. Bd2+ {[%emt 0:00:03]} Kc4 {[%emt 0:00:02]} 50. Ka3 {[%emt 0:00:02]} Kd3 {[%emt 0:00:07]} 51. Be3 {[%emt 0:00:01]} f5 {[%emt 0:00:08]} 52. Bb6 {[%emt 0:00:25]} Ke4 {[%emt 0:00:12]} 53. Be3 {[%emt 0:00:10]} Kf3 {[%emt 0:00:03]} 54. Kb2 {[%emt 0:00:01]} Kg4 {[%emt 0:00:13]} 55. Ka3 {[%emt 0:00:05]} Kf3 {[%emt 0:00:11]} 56. Kb2 1/2-1/2

[Event "2nd FIDE WCC Rapid G10"]
[Site "Minsk"]
[Date "2018.06.23"]
[Round "6"]
[White "Gupta, Sara"]
[Black "Vlasova, Olesia"]
[Result "1/2-1/2"]
[ECO "B23"]
[WhiteElo "1525"]
[BlackElo "1682"]
[Annotator "NA"]
[PlyCount "74"]
[EventDate "2018.06.22"]
[EventType "rapid"]
[EventCountry "BLR"]
[SourceTitle "playchess.com"]
[Source "ChessBase"]
[SourceQuality "1"]
[TimeControl "600+5"]

1. e4 {[%emt 0:00:00]} c5 {[%emt 0:00:01]} 2. Nc3 {[%emt 0:00:00]} e6 {[%emt 0:00:02]} 3. f4 {[%emt 0:00:00]} Nc6 {[%emt 0:00:03]} 4. Nf3 {[%emt 0:00:02]} d5 {[%emt 0:00:06]} 5. d3 {[%emt 0:00:13]} a6 {[%emt 0:01:27]} 6. a4 {[%emt 0:00:07]} b6 7. g3 {[%emt 0:00:34]} Bb7 {[%emt 0:00:10]} 8. Bg2 {[%emt 0:00:04]} Nge7 {[%emt 0:00:32]} 9. O-O {[%emt 0:00:07]} g6 {[%emt 0:00:11]} 10. g4 {[%emt 0:00:40]} Bg7 {[%emt 0:00:05]} 11. Ne2 {[%emt 0:00:24]} O-O {[%emt 0:00:10]} 12. Ng3 {[%emt 0:00:42]} Qd7 {[%emt 0:01:16]} 13. c3 {[%emt 0:01:27]} Rad8 {[%emt 0:00:16]} 14. Nd2 {[%emt 0:00:36]} Qc7 {[%emt 0:03:05]} 15. f5 {[%emt 0:01:18]} Be5 {[%emt 0:00:31]} 16. f6 {[%emt 0:00:51]} Nc8 {[%emt 0:00:24]} 17. Qf3 {[%emt 0:00:28]} d4 {[%emt 0:01:00]} 18. c4 {[%emt 0:00:49]} Rfe8 {[%emt 0:00:07]} 19. Qf2 {[%emt 0:00:21]} Bd6 {[%emt 0:00:11]} 20. Nf3 {[%emt 0:00:09]} Bf8 {[%emt 0:00:22]} 21. Bg5 {[%emt 0:00:27]} e5 {[%emt 0:00:12]} 22. Qd2 {[%emt 0:00:05]} Qd6 {[%emt 0:00:14]} 23. Bh6 {[%emt 0:00:23]} Bxh6 {[%emt 0:00:15]} 24. Qxh6 Qf8 25. Qh4 {[%emt 0:00:20]} Nd6 {[%emt 0:00:18]} 26. Ng5 {[%emt 0:00:03]} h6 {[%emt 0:00:02]} 27. Nf3 {[%emt 0:00:12]} Nb4 {[%emt 0:00:10]} 28. Rad1 {[%emt 0:00:13]} Nc2 {[%emt 0:00:04]} 29. Rfe1 {[%emt 0:00:32]} Nxe1 {[%emt 0:00:02]} 30. Rxe1 {[%emt 0:00:03]} Bc8 {[%emt 0:00:06]} 31. g5 {[%emt 0:00:03]} h5 {[%emt 0:00:10]} 32. Nxh5 {[%emt 0:00:14]} gxh5 {[%emt 0:00:03]} 33. Qxh5 {[%emt 0:00:02]} Be6 {[%emt 0:00:25]} 34. g6 {[%emt 0:00:21]} fxg6 {[%emt 0:00:14]} 35. Qxg6+ {[%emt 0:00:02]} Kh8 {[%emt 0:00:03]} 36. Qh5+ {[%emt 0:00:04]} Kg8 {[%emt 0:00:02]} 37. Qg6+ {[%emt 0:00:03]} Kh8 {[%emt 0:00:01]} 1/2-1/2

[Event "2nd FIDE WCC Rapid G10"]
[Site "Minsk"]
[Date "2018.06.23"]
[Round "6"]
[White "Marchenko, Yelyzaveta"]
[Black "Edithso, Samantha"]
[Result "0-1"]
[ECO "A45"]
[WhiteElo "1510"]
[BlackElo "1714"]
[Annotator "NA"]
[PlyCount "96"]
[EventDate "2018.06.22"]
[EventType "rapid"]
[EventCountry "BLR"]
[SourceTitle "playchess.com"]
[Source "ChessBase"]
[SourceQuality "1"]
[TimeControl "600+5"]

1. d4 {[%emt 0:00:00]} Nf6 {[%emt 0:00:01]} 2. Bf4 {[%emt 0:00:00]} g6 {[%emt 0:00:02]} 3. e3 {[%emt 0:00:00]} Bg7 {[%emt 0:00:01]} 4. Nf3 {[%emt 0:00:00]} O-O {[%emt 0:00:02]} 5. c4 {[%emt 0:00:04]} c6 {[%emt 0:00:07]} 6. Nc3 {[%emt 0:00:02]} d5 {[%emt 0:00:01]} 7. cxd5 {[%emt 0:00:12]} Nxd5 {[%emt 0:00:13]} 8. Nxd5 {[%emt 0:00:03]} cxd5 {[%emt 0:00:02]} 9. Bd3 {[%emt 0:00:00]} Nc6 {[%emt 0:00:00]} 10. O-O {[%emt 0:00:01]} Bg4 {[%emt 0:00:01]} 11. h3 {[%emt 0:00:15]} Bxf3 {[%emt 0:00:13]} 12. Qxf3 {[%emt 0:00:02]} Kh8 {[%emt 0:00:01]} 13. a3 {[%emt 0:00:22]} f6 {[%emt 0:00:04]} 14. Qe2 {[%emt 0:00:34]} e5 {[%emt 0:00:04]} 15. dxe5 {[%emt 0:00:06]} fxe5 {[%emt 0:00:01]} 16. Bh2 {[%emt 0:00:01]} Qe7 {[%emt 0:00:15]} 17. Rac1 {[%emt 0:01:19]} a6 {[%emt 0:00:10]} 18. Rfd1 {[%emt 0:00:53]} e4 {[%emt 0:00:44]} 19. Bb1 {[%emt 0:00:11]} Rad8 {[%emt 0:00:10]} 20. b4 {[%emt 0:00:27]} Ne5 {[%emt 0:00:14]} 21. Ba2 {[%emt 0:00:11]} Nd3 {[%emt 0:00:34]} 22. Rc7 {[%emt 0:00:50]} Rd7 {[%emt 0:00:11]} 23. Rxd7 {[%emt 0:00:11]} Qxd7 {[%emt 0:00:02]} 24. f3 {[%emt 0:00:45]} Bh6 {[%emt 0:01:11]} 25. Bb1 {[%emt 0:00:53]} Qe6 {[%emt 0:00:23]} 26. f4 {[%emt 0:00:21]} Bg7 {[%emt 0:01:27]} 27. Bxd3 exd3 28. Qxd3 {[%emt 0:00:15]} Rd8 {[%emt 0:00:15]} 29. Bg3 {[%emt 0:00:11]} d4 {[%emt 0:00:08]} 30. exd4 {[%emt 0:00:47]} Rxd4 {[%emt 0:00:12]} 31. Qc2 {[%emt 0:00:02]} Rc4 {[%emt 0:01:16]} 32. Qf2 {[%emt 0:00:18]} Qe8 {[%emt 0:00:15]} 33. Bh4 {[%emt 0:00:46]} Rc8 {[%emt 0:00:23]} 34. Qb6 {[%emt 0:00:33]} Rb8 {[%emt 0:00:21]} 35. Kh2 {[%emt 0:00:24]} Qf8 {[%emt 0:00:10]} 36. Qc7 {[%emt 0:00:09]} b5 {[%emt 0:00:11]} 37. Rd7 {[%emt 0:00:42]} Rc8 {[%emt 0:00:12]} 38. Qd6 {[%emt 0:00:09]} Qxd6 {[%emt 0:00:33]} 39. Rxd6 {[%emt 0:00:01]} Ra8 {[%emt 0:00:04]} 40. Be1 {[%emt 0:00:13]} Bf8 {[%emt 0:00:08]} 41. Bc3+ {[%emt 0:00:06]} Kg8 {[%emt 0:00:05]} 42. Rd3 {[%emt 0:00:06]} Ra7 {[%emt 0:00:05]} 43. Kg3 {[%emt 0:00:02]} Kf7 {[%emt 0:00:02]} 44. Kf3 {[%emt 0:00:08]} Be7 {[%emt 0:00:10]} 45. Ke4 {[%emt 0:00:05]} Ke6 {[%emt 0:00:11]} 46. g4 {[%emt 0:00:07]} Rc7 {[%emt 0:00:14]} 47. Kd4 {[%emt 0:00:18]} Bf6+ {[%emt 0:00:03]} 48. Ke4 {[%emt 0:00:02]} Bxc3 {[%emt 0:00:04]} 0-1

[Event "2nd FIDE WCC Rapid G10"]
[Site "Minsk"]
[Date "2018.06.23"]
[Round "6"]
[White "Darmaeva, Nomina"]
[Black "Satanovskaia, Evgeniia"]
[Result "0-1"]
[ECO "C50"]
[WhiteElo "1388"]
[BlackElo "1384"]
[Annotator "NA"]
[PlyCount "59"]
[EventDate "2018.06.22"]
[EventType "rapid"]
[EventCountry "BLR"]
[SourceTitle "playchess.com"]
[Source "ChessBase"]
[SourceQuality "1"]
[TimeControl "600+5"]

1. e4 {[%emt 0:00:00]} e5 {[%emt 0:00:03]} 2. Nf3 {[%emt 0:00:00]} Nc6 {[%emt 0:00:01]} 3. d4 {[%emt 0:00:04]} exd4 {[%emt 0:00:02]} 4. Bc4 {[%emt 0:00:01]} Be7 {[%emt 0:00:47]} 5. c3 {[%emt 0:00:03]} dxc3 {[%emt 0:00:07]} 6. Qd5 {[%emt 0:00:04]} Nh6 {[%emt 0:03:03]} 7. Bxh6 {[%emt 0:00:03]} O-O {[%emt 0:00:25]} 8. Bxg7 {[%emt 0:00:39]} Kxg7 {[%emt 0:00:25]} 9. Nxc3 {[%emt 0:00:13]} d6 {[%emt 0:00:20]} 10. Qh5 {[%emt 0:00:52]} Bf6 {[%emt 0:01:59]} 11. O-O {[%emt 0:00:32]} Ne5 {[%emt 0:00:10]} 12. Nxe5 {[%emt 0:00:09]} Bxe5 13. f4 {[%emt 0:00:39]} Bd4+ {[%emt 0:00:27]} 14. Kh1 {[%emt 0:00:02]} Bxc3 {[%emt 0:00:05]} 15. bxc3 {[%emt 0:00:01]} Qf6 {[%emt 0:00:12]} 16. Rf3 {[%emt 0:00:33]} Kh8 {[%emt 0:00:20]} 17. f5 {[%emt 0:01:13]} Bd7 {[%emt 0:01:15]} 18. Raf1 {[%emt 0:00:39]} Be8 {[%emt 0:01:10]} 19. Bd3 {[%emt 0:01:12]} Rg8 {[%emt 0:00:11]} 20. Rh3 {[%emt 0:00:51]} Rg7 {[%emt 0:00:12]} 21. Qf3 {[%emt 0:00:28]} Bc6 {[%emt 0:00:15]} 22. Qe2 {[%emt 0:00:41]} Rag8 {[%emt 0:00:12]} 23. Rg1 {[%emt 0:00:05]} Re8 {[%emt 0:00:02]} 24. Re3 {[%emt 0:00:07]} Re7 {[%emt 0:00:05]} 25. c4 {[%emt 0:00:10]} Re8 {[%emt 0:00:01]} 26. Qf2 {[%emt 0:00:36]} Re5 27. g4 {[%emt 0:01:14]} h6 {[%emt 0:00:16]} 28. Qd2 {[%emt 0:00:34]} Qg5 {[%emt 0:00:13]} 29. Qf2 {[%emt 0:00:17]} Qf6 {[%emt 0:00:02]} 30. Qf4 {time} 0-1